bitfinex/quotes_BTCUSD_20250727
["timestamp","ask_amount","ask_price","bid_price","bid_amount"]
[1753626174365,0.06776096,118530.0,118520.0,0.46240291]
[1753626174822,0.43487148,118530.0,118520.0,0.47083987]
[1753626175039,0.43487148,118530.0,118520.0,0.48593987]
[1753626175248,0.43487148,118530.0,118520.0,0.47750291]
[1753626175249,0.06776096,118530.0,118520.0,0.47750291]
[1753626175463,0.06776096,118530.0,118520.0,0.48593987]
[1753626175891,0.06776096,118530.0,118520.0,0.47750291]
[1753626176598,0.06776096,118530.0,118520.0,0.48593987]
[1753626176797,0.07619735,118530.0,118520.0,0.45396588]
[1753626176988,0.43487148,118530.0,118520.0,0.46240291]
[1753626177201,0.06776096,118530.0,118520.0,0.46240291]
[1753626177403,0.43487148,118530.0,118520.0,0.46240291]
[1753626178043,0.4433078,118530.0,118520.0,0.46240291]
[1753626178470,0.4433078,118530.0,118520.0,0.45396588]
[1753626178695,0.45174419,118530.0,118520.0,0.45396588]
[1753626178908,0.45174419,118530.0,118520.0,0.46946588]
[1753626179124,0.4433078,118530.0,118520.0,0.46946588]
[1753626179339,0.4433078,118530.0,118520.0,0.47790291]
[1753626179551,0.4433078,118530.0,118520.0,0.46946588]
[1753626179823,0.45162419,118530.0,118520.0,0.46946588]
[1753626180252,0.45162419,118530.0,118520.0,0.46102878]
[1753626180465,0.44318815,118530.0,118520.0,0.46102878]
[1753626180693,0.07607763,118530.0,118520.0,0.42865421]
[1753626180901,0.44330815,118530.0,118520.0,0.43709146]
[1753626181134,0.44330815,118530.0,118520.0,0.44552856]
[1753626181466,0.44330815,118530.0,118520.0,0.45396559]
[1753626181679,0.44330815,118530.0,118520.0,0.44552856]
[1753626182092,0.43487176,118530.0,118520.0,0.45396559]
[1753626182318,0.43487176,118530.0,118520.0,0.45376559]
[1753626182507,0.06776124,118530.0,118520.0,0.46926559]
[1753626182766,0.06764124,118530.0,118520.0,0.45376559]
[1753626183188,0.06764124,118530.0,118520.0,0.44532856]
[1753626183519,0.06764124,118530.0,118520.0,0.46926559]
[1753626183714,0.05076867,118530.0,118520.0,0.46082856]
[1753626183923,0.05920499,118530.0,118520.0,0.46082856]
[1753626184173,0.05920499,118530.0,118520.0,0.46926559]
[1753626184841,0.05920492,118530.0,118520.0,0.47770255]
[1753626185028,0.06764131,118530.0,118520.0,0.46926559]
[1753626185661,0.05920492,118530.0,118520.0,0.46926559]
[1753626185892,0.06764131,118530.0,118520.0,0.46082856]
[1753626186135,0.05920492,118530.0,118520.0,0.83637611]
[1753626186359,0.05920492,118530.0,118520.0,0.844813]
[1753626186579,0.05920485,118530.0,118520.0,0.844813]
[1753626186788,0.05920485,118530.0,118520.0,0.84481307]
[1753626187397,0.05920485,118530.0,118520.0,0.83637611]
[1753626187568,0.0676411,118530.0,118520.0,0.83637611]
[1753626187770,0.06712336,118530.0,118520.0,0.84481307]
[1753626188493,0.06712336,118530.0,118520.0,0.86071307]
[1753626188930,0.06712336,118530.0,118520.0,0.48516559]
[1753626189152,0.06712336,118530.0,118520.0,0.85227611]
[1753626189356,0.07555975,118530.0,118520.0,0.84383908]
[1753626189566,0.06712336,118530.0,118520.0,0.83637611]
[1753626190030,0.06712336,118530.0,118520.0,0.84481307]
[1753626190450,0.05868711,118530.0,118520.0,0.49360255]
[1753626190680,0.06712343,118530.0,118520.0,0.47672856]
[1753626190900,0.43423395,118530.0,118520.0,0.48516574]
[1753626191125,0.06712343,118530.0,118520.0,0.86071329]
[1753626191350,0.06712336,118530.0,118520.0,0.86915025]
[1753626191552,0.06712336,118530.0,118520.0,0.89545329]
[1753626191791,0.06712336,118530.0,118520.0,0.85325025]
[1753626192031,0.06712336,118530.0,118520.0,0.48613973]
[1753626192242,0.06712336,118530.0,118520.0,0.47770277]
[1753626192243,0.07555975,118530.0,118520.0,0.47770277]
[1753626192386,0.06712336,118530.0,118520.0,0.47770277]
[1753626193056,0.07555975,118530.0,118520.0,0.47770277]
[1753626193258,0.07555975,118530.0,118520.0,0.46082856]
[1753626193465,0.07555975,118530.0,118520.0,0.82793908]
[1753626193981,0.07555968,118530.0,118520.0,0.84481307]
[1753626194143,0.07555968,118530.0,118520.0,0.46926559]
[1753626194520,0.07555968,118530.0,118520.0,0.83637611]
[1753626195611,0.07555968,118530.0,118520.0,0.81950198]
[1753626195828,0.07555968,118530.0,118520.0,0.82793901]
[1753626196044,0.06712336,118530.0,118520.0,0.83637597]
[1753626196282,0.06712336,118530.0,118520.0,0.82793901]
[1753626196630,0.06712336,118530.0,118520.0,0.83637597]
[1753626196941,0.07555975,118530.0,118520.0,0.82793901]
[1753626197144,0.06712336,118530.0,118520.0,0.82837901]
[1753626197455,0.06712336,118530.0,118520.0,0.83681597]
[1753626197950,0.06712336,118530.0,118520.0,0.82837901]
[1753626198368,0.06712336,118530.0,118520.0,0.83681597]
[1753626198581,0.05868711,118530.0,118520.0,0.84525286]
[1753626199358,0.05868711,118530.0,118520.0,0.86175286]
[1753626199572,0.06712343,118530.0,118520.0,0.85331597]
[1753626199790,0.05868711,118530.0,118520.0,0.85331597]
[1753626200012,0.0671235,118530.0,118520.0,0.47776849]
[1753626200455,0.06712343,118530.0,118520.0,0.81994198]
[1753626200675,0.06712343,118530.0,118520.0,0.83681611]
[1753626201312,0.06712343,118530.0,118520.0,0.82837908]
[1753626201773,0.05868711,118530.0,118520.0,0.83681604]
[1753626202001,0.05868711,118530.0,118520.0,0.84525293]
[1753626202426,0.05868711,118530.0,118520.0,0.86055293]
[1753626202910,0.06712343,118530.0,118520.0,0.85211604]
[1753626203088,0.06712343,118530.0,118520.0,0.48500559]
[1753626203350,0.06712343,118530.0,118520.0,0.85211611]
[1753626203546,0.05868711,118530.0,118520.0,0.86055307]
[1753626203976,0.07555968,118530.0,118520.0,0.85211611]
[1753626204193,0.06712336,118530.0,118520.0,0.86055307]
[1753626204416,0.05868711,118530.0,118520.0,0.86898996]
[1753626204631,0.05868711,118530.0,118520.0,0.86055307]
[1753626204859,0.06712336,118530.0,118520.0,0.86055307]
[1753626205082,0.05868711,118530.0,118520.0,0.86898996]
[1753626207265,0.05868711,118530.0,118520.0,0.48500559]
[1753626207565,0.06712343,118530.0,118520.0,0.86055307]
[1753626207771,0.06712343,118530.0,118520.0,0.85211611]
[1753626208009,0.05868711,118530.0,118520.0,0.86898996]
[1753626209153,0.05868711,118530.0,118520.0,0.83681611]
[1753626209415,0.06712336,118530.0,118520.0,0.47814255]
[1753626209639,0.06712336,118530.0,118520.0,0.85368996]
[1753626209843,0.06712336,118530.0,118520.0,0.83681611]
[1753626210042,0.06712336,118530.0,118520.0,0.85368996]
[1753626210280,0.06712336,118530.0,118520.0,0.84525307]
[1753626210501,0.05868711,118530.0,118520.0,0.84525307]
[1753626210717,0.0671235,118530.0,118520.0,0.46970559]
[1753626210946,0.06712343,118530.0,118520.0,0.84525307]
[1753626211165,0.05868711,118530.0,118520.0,0.85368996]
[1753626211687,0.06712343,118530.0,118520.0,0.47814255]
[1753626212017,0.06712336,118530.0,118520.0,0.84525307]
[1753626212232,0.06712336,118530.0,118520.0,0.83681611]
[1753626212654,0.06712336,118530.0,118520.0,0.84525307]
[1753626213590,0.04181482,118530.0,118520.0,0.85368996]
[1753626213794,0.050251,118530.0,118520.0,0.85368996]
[1753626214100,0.05868732,118530.0,118520.0,0.8368164]
[1753626214533,0.050251,118530.0,118520.0,0.84525336]
[1753626214755,0.050251,118530.0,118520.0,0.8368164]
[1753626214960,0.050251,118530.0,118520.0,0.84525336]
[1753626215330,0.05868704,118530.0,118520.0,0.85369025]
[1753626216178,0.05868704,118530.0,118520.0,0.84525336]
[1753626216557,0.05868704,118530.0,118520.0,0.85369025]
[1753626217135,0.05868704,118530.0,118520.0,0.84525336]
[1753626217345,0.05868704,118530.0,118520.0,0.85369025]
[1753626217558,0.05868704,118530.0,118520.0,0.86989025]
[1753626218034,0.05868704,118530.0,118520.0,0.86145336]
[1753626218259,0.04181482,118530.0,118520.0,0.86145336]
[1753626218485,0.02677982,118530.0,118520.0,2.35316777]
[1753626218717,0.00177982,118530.0,118520.0,2.35316777]
[1753626218939,0.00177982,118530.0,118520.0,2.35312777]
[1753626219360,0.00177982,118530.0,118520.0,2.17628377]
[1753626219577,0.00177982,118530.0,118520.0,2.24039377]
[1753626219816,0.00177982,118530.0,118520.0,1.68537177]
[1753626220036,0.00177982,118530.0,118520.0,1.68541177]
[1753626220255,0.00177982,118530.0,118520.0,1.57696077]
[1753626220474,0.00177982,118530.0,118520.0,1.57796077]
[1753626221251,0.00177982,118530.0,118520.0,1.57696077]
[1753626221502,0.00177982,118530.0,118520.0,1.57796077]
[1753626221948,0.00177982,118530.0,118520.0,1.57696077]
[1753626222188,0.00177982,118530.0,118520.0,2.40688677]
[1753626222645,0.00177982,118530.0,118520.0,2.40684677]
[1753626222874,0.00177982,118530.0,118520.0,2.32911777]
[1753626223745,0.00177982,118530.0,118520.0,4.71767377]
[1753626223961,0.00177982,118530.0,118520.0,4.16824977]
[1753626224213,0.00177982,118530.0,118520.0,3.85846977]
[1753626224463,0.00177982,118530.0,118520.0,2.84795796]
[1753626224676,0.00177982,118530.0,118520.0,2.62671196]
[1753626224894,0.00177982,118530.0,118520.0,3.60250696]
[1753626225081,0.00177982,118530.0,118520.0,3.32082796]
[1753626226013,0.00177982,118530.0,118520.0,5.03873196]
[1753626226245,0.00177982,118530.0,118520.0,4.79431196]
[1753626226662,0.00177982,118530.0,118520.0,4.75322596]
[1753626226873,0.00177982,118530.0,118520.0,4.65779296]
[1753626227311,0.00177982,118530.0,118520.0,1.65465996]
[1753626227542,0.00177982,118530.0,118520.0,4.58755196]
[1753626228939,0.00177982,118530.0,118520.0,1.65465996]
[1753626229164,0.00177982,118530.0,118520.0,4.58583596]
[1753626229853,0.00177982,118530.0,118520.0,4.35400296]
[1753626230110,0.00177982,118530.0,118520.0,2.94915644]
[1753626230353,0.00177982,118530.0,118520.0,2.90911644]
[1753626230641,0.00177982,118530.0,118520.0,2.79466844]
[1753626231339,0.00177982,118530.0,118520.0,2.66510844]
[1753626231567,0.00177982,118530.0,118520.0,1.66403944]
[1753626231998,0.00177982,118530.0,118520.0,1.66398644]
[1753626232224,0.00177982,118530.0,118520.0,1.53442644]
[1753626232461,0.00177982,118530.0,118520.0,1.66394644]
[1753626232999,0.00177982,118530.0,118520.0,1.28746944]
[1753626233231,0.00177982,118530.0,118520.0,1.65639944]
[1753626234143,0.00177982,118530.0,118520.0,2.39141444]
[1753626235195,0.00177982,118530.0,118520.0,1.99104944]
[1753626235427,0.00177982,118530.0,118520.0,1.60897044]
[1753626235698,0.00177982,118530.0,118520.0,1.27394844]
[1753626235926,0.00177982,118530.0,118520.0,1.40342844]
[1753626236136,0.00177982,118530.0,118520.0,1.44552844]
[1753626236365,0.00177982,118530.0,118520.0,1.28742944]
[1753626237060,0.00177982,118530.0,118520.0,1.46254144]
[1753626237283,0.00390982,118530.0,118520.0,1.20824944]
[1753626237504,0.03533593,118530.0,118520.0,1.19204944]
[1753626237960,0.03533593,118530.0,118520.0,1.17654944]
[1753626238251,0.04377218,118530.0,118520.0,0.80943892]
[1753626238444,0.04377218,118530.0,118520.0,1.17654944]
[1753626238661,0.05220857,118530.0,118520.0,1.17654944]
[1753626238883,0.0522085,118530.0,118520.0,1.17654944]
[1753626239800,0.04377218,118530.0,118520.0,1.17654944]
[1753626240259,0.05220857,118530.0,118520.0,1.17654944]
[1753626240480,0.04377218,118530.0,118520.0,1.17654944]
[1753626240670,0.04693218,118530.0,118520.0,1.17654944]
[1753626240931,0.03849593,118530.0,118520.0,1.17654944]
[1753626241158,0.03533593,118530.0,118520.0,0.84885892]
[1753626241377,0.03533593,118530.0,118520.0,1.21596944]
[1753626241592,0.04377218,118530.0,118520.0,1.21596944]
[1753626242556,0.04377211,118530.0,118520.0,1.21596944]
[1753626242773,0.04377211,118530.0,118520.0,0.84885892]
[1753626242976,0.04377211,118530.0,118520.0,1.21596944]
[1753626243400,0.02078211,118530.0,118520.0,1.22204944]
[1753626244497,0.01234593,118530.0,118520.0,1.22204944]
[1753626244717,0.00390982,118530.0,118520.0,1.22204944]
[1753626244903,0.01234586,118530.0,118520.0,1.22204944]
[1753626245566,0.00177982,118530.0,118520.0,1.23824944]
[1753626267602,0.00177982,118530.0,118520.0,0.87113892]
[1753626267815,0.00177982,118530.0,118520.0,1.23824944]
[1753626270125,0.00177982,118530.0,118520.0,0.87113892]
[1753626270347,0.00177982,118530.0,118520.0,1.23824944]
[1753626282314,0.00177982,118530.0,118520.0,1.21315025]
[1753626286742,0.00177982,118530.0,118520.0,1.23832607]
[1753626290601,0.00177982,118530.0,118520.0,1.28896607]
[1753626290781,0.00177982,118530.0,118520.0,1.23832607]
[1753626294549,0.01432255,118540.0,118530.0,0.19404283]
[1753626294756,0.00809557,118540.0,118530.0,0.79948065]
[1753626295166,0.00809557,118540.0,118530.0,0.43237013]
[1753626295368,0.03191557,118540.0,118530.0,0.79948065]
[1753626295572,0.04691557,118540.0,118530.0,0.79948065]
[1753626295975,0.05535097,118540.0,118530.0,0.79948065]
[1753626296453,0.05535097,118540.0,118530.0,0.80847569]
[1753626296672,0.04035097,118540.0,118530.0,0.80847569]
[1753626297099,0.04035097,118540.0,118530.0,0.3998426]
[1753626297100,0.05645097,118540.0,118530.0,0.3998426]
[1753626297315,0.05645097,118540.0,118530.0,0.79226216]
[1753626299049,0.05645097,118540.0,118530.0,0.42515164]
[1753626299263,0.05645097,118540.0,118530.0,0.79226216]
[1753626299446,0.06488651,118540.0,118530.0,0.79226216]
[1753626299872,0.06488651,118540.0,118530.0,0.78382598]
[1753626300085,0.06488651,118540.0,118530.0,0.41671546]
[1753626300335,0.43199703,118540.0,118530.0,0.42515171]
[1753626300561,0.60367644,118540.0,118530.0,0.22267234]
[1753626300781,0.4619416,118540.0,118530.0,0.4257283]
[1753626300997,0.62222561,118540.0,118530.0,0.41729169]
[1753626301210,0.62222561,118540.0,118530.0,0.40885501]
[1753626301211,0.25511509,118540.0,118530.0,0.40885501]
[1753626301432,0.61379007,118540.0,118530.0,0.41729169]
[1753626301844,0.24667955,118540.0,118530.0,0.41729169]
[1753626302073,0.60535432,118540.0,118530.0,0.40885501]
[1753626303662,0.59691835,118540.0,118530.0,0.40885501]
[1753626304104,0.59691835,118540.0,118530.0,0.41729169]
[1753626304317,0.35900783,118540.0,118530.0,0.28809169]
[1753626304537,0.72611835,118540.0,118530.0,0.27965501]
[1753626307846,0.70715835,118540.0,118530.0,0.27965501]
[1753626308253,0.57795835,118540.0,118530.0,0.27965501]
[1753626308452,0.70715835,118540.0,118530.0,0.27965501]
[1753626308654,0.70715835,118540.0,118530.0,0.11092136]
[1753626308655,0.72511835,118540.0,118530.0,0.11092136]
[1753626309316,0.72511835,118540.0,118530.0,0.27965501]
[1753626309520,0.70715835,118540.0,118530.0,0.27965501]
[1753626309935,0.34004783,118540.0,118530.0,0.27965501]
[1753626310149,0.70715835,118540.0,118530.0,0.27965501]
[1753626310963,0.34004783,118540.0,118530.0,0.27965501]
[1753626311174,0.70715835,118540.0,118530.0,0.27965501]
[1753626311409,0.71559417,118540.0,118530.0,0.28809169]
[1753626311629,0.71559417,118540.0,118530.0,0.27965501]
[1753626311846,0.71559417,118540.0,118530.0,0.30430501]
[1753626312254,0.34848365,118540.0,118530.0,0.30430501]
[1753626312470,0.71559417,118540.0,118530.0,0.30430501]
[1753626313897,0.71559417,118540.0,118530.0,0.27965501]
[1753626314804,0.71559417,118540.0,118530.0,0.11092136]
[1753626315238,0.71559417,118540.0,118530.0,0.13557136]
[1753626315466,0.71559417,118540.0,118530.0,0.30430501]
[1753626316653,0.71559417,118540.0,118530.0,0.30640501]
[1753626316654,0.32466365,118540.0,118530.0,0.30640501]
[1753626316853,0.30856365,118540.0,118530.0,0.30944501]
[1753626317282,0.67567417,118540.0,118530.0,0.30944501]
[1753626318421,0.30856365,118540.0,118530.0,0.30944501]
[1753626318640,0.67567417,118540.0,118530.0,0.30944501]
[1753626319543,0.30856365,118540.0,118530.0,0.30944501]
[1753626319759,0.67567417,118540.0,118530.0,0.30944501]
[1753626320321,0.30856365,118540.0,118530.0,0.30944501]
[1753626320558,0.67567417,118540.0,118530.0,0.30944501]
[1753626320984,0.67567417,118540.0,118530.0,0.32534501]
[1753626323095,0.30856365,118540.0,118530.0,0.32534501]
[1753626323270,0.67567417,118540.0,118530.0,0.32534501]
[1753626323524,0.67567417,118540.0,118530.0,0.30944501]
[1753626324750,0.00848382,118540.0,118530.0,0.84808492]
[1753626324921,0.02535525,118540.0,118530.0,0.85534875]
[1753626325266,4.842e-05,118540.0,118530.0,0.88065778]
[1753626325707,0.00848382,118540.0,118530.0,0.88065778]
[1753626325918,0.00848375,118540.0,118530.0,0.88065778]
[1753626326133,0.01691922,118540.0,118530.0,0.88065778]
[1753626326339,0.00848375,118540.0,118530.0,0.88065778]
[1753626326770,0.01691915,118540.0,118530.0,0.88065778]
[1753626327630,0.01691915,118540.0,118530.0,0.8722216]
[1753626327840,0.02535469,118540.0,118530.0,0.88065785]
[1753626328068,0.02535469,118540.0,118530.0,0.88065792]
[1753626328258,0.01691915,118540.0,118530.0,0.88065713]
[1753626328465,0.0337903,118540.0,118530.0,0.85534838]
[1753626329658,0.03379023,118540.0,118530.0,0.85534838]
[1753626329854,0.03379023,118540.0,118530.0,0.8637847]
[1753626331883,0.00848375,118540.0,118530.0,0.86378456]
[1753626332348,0.01691922,118540.0,118530.0,0.86378456]
[1753626332566,0.00848375,118540.0,118530.0,0.86378456]
[1753626332999,4.842e-05,118540.0,118530.0,0.86378456]
[1753626333226,0.00848375,118540.0,118530.0,0.86378456]
[1753626334092,4.842e-05,118540.0,118530.0,0.86378456]
[1753626334535,0.00848382,118540.0,118530.0,0.86378456]
[1753626334742,4.842e-05,118540.0,118530.0,0.86378456]
[1753626335525,0.00848375,118540.0,118530.0,0.86378456]
[1753626337984,0.51167033,118550.0,118540.0,0.2108044]
[1753626338185,0.51373033,118550.0,118540.0,0.82023222]
[1753626338417,0.51373033,118550.0,118540.0,0.81179625]
[1753626340206,0.51373033,118550.0,118540.0,0.82709625]
[1753626340644,0.51373033,118550.0,118540.0,0.45998573]
[1753626340848,0.51373033,118550.0,118540.0,0.81179625]
[1753626341228,0.34296482,118550.0,118540.0,0.82023222]
[1753626341432,0.34296482,118550.0,118540.0,0.83553222]
[1753626341700,0.51167,118550.0,118540.0,0.82709625]
[1753626341907,0.51167,118550.0,118540.0,0.81179625]
[1753626342108,0.51373,118550.0,118540.0,0.81179625]
[1753626342713,0.51373,118550.0,118540.0,0.82023222]
[1753626342922,0.51373,118550.0,118540.0,0.82709625]
[1753626343127,0.51373,118550.0,118540.0,0.81179625]
[1753626343548,0.51373,118550.0,118540.0,0.82023222]
[1753626344104,0.51373,118550.0,118540.0,0.81179625]
[1753626344308,0.33658957,118550.0,118540.0,0.82866811]
[1753626344546,0.34502475,118550.0,118540.0,0.82866811]
[1753626344950,0.32609453,118550.0,118540.0,0.8608394]
[1753626345371,0.32609446,118550.0,118540.0,0.8608394]
[1753626345570,0.3345295,118550.0,118540.0,0.85240379]
[1753626345782,0.32609446,118550.0,118540.0,0.85240379]
[1753626345974,0.32609446,118550.0,118540.0,0.8608394]
[1753626346350,0.3345295,118550.0,118540.0,0.85240379]
[1753626347043,0.3345295,118550.0,118540.0,0.85240386]
[1753626347950,0.3345295,118550.0,118540.0,0.48529334]
[1753626348164,0.3345295,118550.0,118540.0,0.86083968]
[1753626348388,0.3345295,118550.0,118540.0,0.85240393]
[1753626349274,0.34296468,118550.0,118540.0,0.84396811]
[1753626350653,0.23446468,118550.0,118540.0,0.84396811]
[1753626351185,0.23446468,118550.0,118540.0,0.85240393]
[1753626351408,0.23446468,118550.0,118540.0,0.83553222]
[1753626351614,0.24289993,118550.0,118540.0,0.83553222]
[1753626351830,0.41160511,118550.0,118540.0,0.82709625]
[1753626352257,0.41160511,118550.0,118540.0,0.45998573]
[1753626352486,0.40523035,118550.0,118540.0,0.82023222]
[1753626353108,0.22808992,118550.0,118540.0,0.82023214]
[1753626353338,0.22808992,118550.0,118540.0,0.82023222]
[1753626353930,0.3967951,118550.0,118540.0,0.81179625]
[1753626354140,0.3967951,118550.0,118540.0,0.82023214]
[1753626354985,0.22808992,118550.0,118540.0,0.82023214]
[1753626355204,0.22808992,118550.0,118540.0,0.81179625]
[1753626355419,0.22808992,118550.0,118540.0,0.82866811]
[1753626356043,0.22808992,118550.0,118540.0,0.46155759]
[1753626356249,0.22808992,118550.0,118540.0,0.82866811]
[1753626357025,0.22808992,118550.0,118540.0,0.82023222]
[1753626357697,0.23652517,118550.0,118540.0,0.82023222]
[1753626357910,0.23652517,118550.0,118540.0,0.82866811]
[1753626358108,0.23652517,118550.0,118540.0,0.82023222]
[1753626358758,0.23652517,118550.0,118540.0,0.82866811]
[1753626358972,0.40523035,118550.0,118540.0,0.81179625]
[1753626359400,0.40523035,118550.0,118540.0,0.82023214]
[1753626359614,0.40523035,118550.0,118540.0,0.44468573]
[1753626359880,0.40523035,118550.0,118540.0,0.81179625]
[1753626360348,0.39679545,118550.0,118540.0,0.81179625]
[1753626360995,0.39679545,118550.0,118540.0,0.44468573]
[1753626364357,0.39679545,118550.0,118540.0,0.4531217]
[1753626364996,0.39679545,118550.0,118540.0,0.44468573]
[1753626365429,0.39679545,118550.0,118540.0,0.4531217]
[1753626366282,0.22809027,118550.0,118540.0,0.4531217]
[1753626366510,0.22809027,118550.0,118540.0,0.82023222]
[1753626366944,0.39679545,118550.0,118540.0,0.82023222]
[1753626367163,0.39679545,118550.0,118540.0,0.82866811]
[1753626367386,0.39679545,118550.0,118540.0,0.83643222]
[1753626367623,0.21759502,118550.0,118540.0,0.83643222]
[1753626367898,0.21759502,118550.0,118540.0,0.84486811]
[1753626368118,0.21759502,118550.0,118540.0,0.83643222]
[1753626368542,0.3863002,118550.0,118540.0,0.83643222]
[1753626368983,0.3863002,118550.0,118540.0,0.82799625]
[1753626369450,0.3863002,118550.0,118540.0,0.83643222]
[1753626369658,0.3863002,118550.0,118540.0,0.82799625]
[1753626371167,0.3863002,118550.0,118540.0,0.83643222]
[1753626371389,0.39473545,118550.0,118540.0,0.83643222]
[1753626371600,0.39473545,118550.0,118540.0,0.82799625]
[1753626371801,0.39473545,118550.0,118540.0,0.83643222]
[1753626372012,0.39473545,118550.0,118540.0,0.82799625]
[1753626372206,0.39473545,118550.0,118540.0,0.83643222]
[1753626372480,0.39473545,118550.0,118540.0,0.82799625]
[1753626372708,0.39473545,118550.0,118540.0,0.83643222]
[1753626374846,0.39473545,118550.0,118540.0,0.82799625]
[1753626375060,0.39473545,118550.0,118540.0,0.46088573]
[1753626375276,0.39473545,118550.0,118540.0,0.82799625]
[1753626377195,0.39473545,118550.0,118540.0,0.46088573]
[1753626378202,0.39473545,118550.0,118540.0,0.4693217]
[1753626378410,0.39473545,118550.0,118540.0,0.46088573]
[1753626379475,0.39473545,118550.0,118540.0,0.4693217]
[1753626379892,0.39473545,118550.0,118540.0,0.82799625]
[1753626381316,0.39473545,118550.0,118540.0,0.46088573]
[1753626383609,0.39473545,118550.0,118540.0,0.4693217]
[1753626383819,0.39473545,118550.0,118540.0,0.83643222]
[1753626384023,0.39473545,118550.0,118540.0,0.82799625]
[1753626384962,0.39473545,118550.0,118540.0,0.46088573]
[1753626386062,0.39473545,118550.0,118540.0,0.4693217]
[1753626386478,0.39473545,118550.0,118540.0,0.46088573]
[1753626393504,0.37786523,118550.0,118540.0,0.46088573]
[1753626393748,0.37994523,118550.0,118540.0,0.46088573]
[1753626398870,0.37786523,118550.0,118540.0,0.46088573]
[1753626399090,0.22602985,118550.0,118540.0,0.83643214]
[1753626399367,0.21759467,118550.0,118540.0,0.83643214]
[1753626399575,0.22602985,118550.0,118540.0,0.83643214]
[1753626400208,0.22602985,118550.0,118540.0,0.46932162]
[1753626400465,0.22602985,118550.0,118540.0,0.83643214]
[1753626400713,0.22602978,118550.0,118540.0,0.83643214]
[1753626401005,0.21759424,118550.0,118540.0,0.83643214]
[1753626401301,0.23446439,118550.0,118540.0,0.83643214]
[1753626401505,0.23446439,118550.0,118540.0,0.82799625]
[1753626401695,0.23446439,118550.0,118540.0,0.83643214]
[1753626402035,0.23446439,118550.0,118540.0,0.84486796]
[1753626402333,0.23446439,118550.0,118540.0,0.83643214]
[1753626403833,0.40316957,118550.0,118540.0,0.82799625]
[1753626404279,0.40316957,118550.0,118540.0,0.83643222]
[1753626404534,0.23446439,118550.0,118540.0,0.84486811]
[1753626404773,0.23446439,118550.0,118540.0,0.83643222]
[1753626405452,0.23446439,118550.0,118540.0,0.84486811]
[1753626406293,0.23446439,118550.0,118540.0,0.83643222]
[1753626406816,0.23446439,118550.0,118540.0,0.84486811]
[1753626407361,0.40316957,118550.0,118540.0,0.82799625]
[1753626408013,0.40316957,118550.0,118540.0,0.83643222]
[1753626408622,0.2007248,118550.0,118540.0,0.49462874]
[1753626408833,0.2260295,118550.0,118540.0,0.84486811]
[1753626409053,0.2260295,118550.0,118540.0,0.85330393]
[1753626411523,0.2260295,118550.0,118540.0,0.84486811]
[1753626412379,0.2260295,118550.0,118540.0,0.84486804]
[1753626412601,0.2260295,118550.0,118540.0,0.48619341]
[1753626412819,0.2260295,118550.0,118540.0,0.47775759]
[1753626413033,0.2260295,118550.0,118540.0,0.85330393]
[1753626413487,0.2260295,118550.0,118540.0,0.86173968]
[1753626413701,0.22602943,118550.0,118540.0,0.86173968]
[1753626413914,0.22602943,118550.0,118540.0,0.87017536]
[1753626414408,0.22602943,118550.0,118540.0,0.86173968]
[1753626414615,0.22602943,118550.0,118540.0,0.85330393]
[1753626414851,0.23446461,118550.0,118540.0,0.48619341]
[1753626415054,0.22602943,118550.0,118540.0,0.86173968]
[1753626416729,0.22602943,118550.0,118540.0,0.84486811]
[1753626416938,0.23446454,118550.0,118540.0,0.84486811]
[1753626417152,0.23446454,118550.0,118540.0,0.85330393]
[1753626417357,0.23446454,118550.0,118540.0,0.86173968]
[1753626417764,0.23446454,118550.0,118540.0,0.85330393]
[1753626418567,0.23446454,118550.0,118540.0,0.85369678]
[1753626418751,0.24289972,118550.0,118540.0,0.85369678]
[1753626419028,0.24289972,118550.0,118540.0,0.48658626]
[1753626419237,0.24289972,118550.0,118540.0,0.85369678]
[1753626419455,0.23446503,118550.0,118540.0,0.84526089]
[1753626419683,0.23446503,118550.0,118540.0,0.85369678]
[1753626420299,0.23446503,118550.0,118540.0,0.84526089]
[1753626420610,0.22602985,118550.0,118540.0,0.85369671]
[1753626421455,0.2344651,118550.0,118540.0,0.85369678]
[1753626421676,0.39473503,118550.0,118540.0,0.83682492]
[1753626421930,0.39473503,118550.0,118540.0,0.84526089]
[1753626422175,0.22602985,118550.0,118540.0,0.85369678]
[1753626422729,0.39473503,118550.0,118540.0,0.83682492]
[1753626423006,0.40317028,118550.0,118540.0,0.84526089]
[1753626423457,0.23446503,118550.0,118540.0,0.85369678]
[1753626423685,0.23446503,118550.0,118540.0,0.84526089]
[1753626423906,0.23446503,118550.0,118540.0,0.85369678]
[1753626424518,0.23446503,118550.0,118540.0,0.8621326]
[1753626424772,0.22602985,118550.0,118540.0,0.8621326]
[1753626425075,0.2344651,118550.0,118540.0,0.85369678]
[1753626426511,0.22602985,118550.0,118540.0,0.85369678]
[1753626427813,0.22602985,118550.0,118540.0,0.8621326]
[1753626428418,0.22602985,118550.0,118540.0,0.85369678]
[1753626428606,0.23446503,118550.0,118540.0,0.85369678]
[1753626428830,0.23446503,118550.0,118540.0,0.84526089]
[1753626429035,0.23446503,118550.0,118540.0,0.85369678]
[1753626429247,0.23446503,118550.0,118540.0,0.8621326]
[1753626429466,0.23446503,118550.0,118540.0,0.85369678]
[1753626430358,0.22602985,118550.0,118540.0,0.85369678]
[1753626430543,0.22602985,118550.0,118540.0,0.8621326]
[1753626430748,0.2344651,118550.0,118540.0,0.85369678]
[1753626432260,0.22602985,118550.0,118540.0,0.85369671]
[1753626433051,0.22602985,118550.0,118540.0,0.85369678]
[1753626433408,0.2344651,118550.0,118540.0,0.85369678]
[1753626434256,0.22602985,118550.0,118540.0,0.85369678]
[1753626434462,0.22602985,118550.0,118540.0,0.8621326]
[1753626435255,0.22602985,118550.0,118540.0,0.85369678]
[1753626435460,0.22602985,118550.0,118540.0,0.87056835]
[1753626435671,0.21759474,118550.0,118540.0,0.87900403]
[1753626436076,0.21759474,118550.0,118540.0,0.87056835]
[1753626436314,0.21759474,118550.0,118540.0,0.8621326]
[1753626437342,0.22602985,118550.0,118540.0,0.8621326]
[1753626437668,0.22602985,118550.0,118540.0,0.85369678]
[1753626437855,0.22602985,118550.0,118540.0,0.8621326]
[1753626438493,0.22602985,118550.0,118540.0,0.84526089]
[1753626438716,0.2344651,118550.0,118540.0,0.84526089]
[1753626439163,0.2344651,118550.0,118540.0,0.85369678]
[1753626439379,0.22602985,118550.0,118540.0,0.85369678]
[1753626439595,0.2344651,118550.0,118540.0,0.84526089]
[1753626439826,0.2344651,118550.0,118540.0,0.85369678]
[1753626440019,0.2344651,118550.0,118540.0,0.47815037]
[1753626440221,0.40317028,118550.0,118540.0,0.4697144]
[1753626440361,0.40317028,118550.0,118540.0,0.84526089]
[1753626440568,0.2344651,118550.0,118540.0,0.84526089]
[1753626442021,0.23446503,118550.0,118540.0,0.85369678]
[1753626442282,0.23446503,118550.0,118540.0,0.84526089]
[1753626442510,0.23446503,118550.0,118540.0,0.85369678]
[1753626443488,0.23446503,118550.0,118540.0,0.84526089]
[1753626443692,0.23446503,118550.0,118540.0,0.85369678]
[1753626443880,0.23446503,118550.0,118540.0,0.8621326]
[1753626444142,0.22602985,118550.0,118540.0,0.8621326]
[1753626444456,0.77141065,118550.0,118540.0,0.28488538]